Workbook

Sheet Sheet1
A1: 2826 Cogswell RD, El Monte CA 91732 (All 12 Units) Expense Sheet
A2: Year 2017 | B2: JAN | C2: FEB | D2: MAR | E2: APR | F2: MAY | G2: JUN | H2: JULY | I2: AUG | J2: SEP | K2: OCT | L2: NOV | M2: DEC | N2: TOTAL Yr. 2017
A3: Management Fee | B3: 0 | C3: 0 | D3: 0 | E3: 0 | F3: 0 | G3: 0 | H3: 400 | I3: 400 | J3: 400 | K3: 400 | L3: 400 | M3: 400 | N3: =SUM(H3:M3) -> 2400
A4: Landscape Expense | B4: 0 | C4: 0 | D4: 0 | E4: 0 | F4: 0 | G4: 0 | H4: 100 | I4: 100 | J4: 100 | K4: 100 | L4: 100 | M4: 100 | N4: =SUM(H4:M4) -> 600
A5: SCE | B5: 0 | C5: 0 | D5: 0 | E5: 0 | F5: 0 | G5: 0 | J5: 89.72 | L5: 173.02 | M5: 105.5 | N5: 368.24
A6: GAS | B6: 0 | C6: 0 | D6: 0 | E6: 0 | F6: 0 | G6: 0 | J6: 81.8 | K6: 25.71 | L6: 9.14 | M6: 25.71 | N6: 142.36
A7: WATER | B7: 0 | C7: 0 | D7: 0 | E7: 0 | F7: 0 | G7: 0 | I7: 682.12 | K7: 598.59 | M7: 539.53 | N7: 1820.24
A8: WASTE | B8: 0 | C8: 0 | D8: 0 | E8: 0 | F8: 0 | G8: 0 | H8: 529.57 | I8: 529.57 | J8: 529.57 | K8: 529.57 | L8: 529.57 | M8: 529.57 | N8: 3177.42
A9: PROPERTY TAX | B9: 0 | C9: 0 | D9: 0 | E9: 0 | F9: 0 | G9: 0 | L9: 24000 | N9: 24000
A10: INSURANCE | B10: 0 | C10: 0 | D10: 0 | E10: 0 | F10: 0 | G10: 0 | H10: 6914 | N10: 6914
A11: TOTAL | B11: =SUM(B3:B10) -> 0 | C11: 0 | D11: 0 | E11: 0 | F11: 0 | G11: 0 | H11: =SUM(H3:H10) -> 7943.57 | I11: 1711.69 | J11: 1201.09 | K11: 1653.87 | L11: 25211.73 | M11: 1700.31 | N11: =SUM(H11:M11) -> 39422.26
A13: Year 2018 | B13: JAN | C13: FEB | D13: MAR | E13: APR | F13: MAY | G13: JUN | H13: JUL | I13: AUG | J13: SEP | K13: OCT | L13: NOV | M13: DEC | N13: TOTAL Yr. 2018
A14: Management Fee | B14: 400 | C14: 400 | D14: 400 | E14: 400 | F14: 400 | G14: 400 | H14: 400 | I14: 400 | J14: 400 | K14: 400 | L14: 400 | M14: 400 | N14: =SUM(B14:M14) -> 4800
A15: Landscape Expense | B15: 100 | C15: 100 | D15: 100 | E15: 100 | F15: 100 | G15: 100 | H15: 100 | I15: 100 | J15: 100 | K15: 100 | L15: 100 | M15: 100 | N15: 1200
A16: SCE | C16: 112.6 | D16: 67.78 | F16: 38.87 | G16: 30.74 | I16: 38.41 | J16: 16.29 | K16: 16.41 | L16: 17.74 | M16: 17.87 | N16: 356.71
A17: GAS | B17: 11.44 | C17: 47.19 | D17: 51.08 | F17: 21.08 | G17: 6.23 | H17: 16.16 | N17: 153.18
A18: WATER | B18: 496.39 | C18: 433.29 | D18: 504.67 | F18: 512.01 | G18: 554.96 | H18: 530.43 | I18: 520.06 | J18: 556.27 | K18: 521.59 | L18: 598.88 | N18: 5228.55
A19: WASTE | B19: 529.57 | C19: 529.57 | D19: 529.57 | E19: 529.57 | F19: 529.57 | G19: 529.57 | H19: 529.57 | I19: 529.57 | J19: 529.57 | K19: 529.57 | L19: 529.57 | M19: 529.57 | N19: 6354.84
A20: PROPERTY TAX | E20: 24000 | L20: 24000 | N20: 48000
A21: INSURANCE | I21: 6914 | N21: 6914
A22: TOTAL | B22: =SUM(B14:B21) -> 1537.4 | C22: =SUM(C14:C21) -> 1622.65 | D22: 1653.1 | E22: 25029.57 | F22: 1601.53 | G22: 1621.5 | H22: 1576.16 | I22: 8502.04 | J22: 1602.13 | K22: 1567.57 | L22: 25646.19 | M22: 1047.44 | N22: 73007.28
A24: Year 2019 | B24: JAN | C24: FEB | D24: MAR | E24: APR | F24: MAY | G24: JUN | H24: JUL | I24: AUG | J24: SEP | K24: OCT | L24: NOV | M24: DEC | N24: TOTAL Yr. 2019
A25: Management Fee | B25: 400 | C25: 400 | D25: 400 | E25: 400 | F25: 400 | G25: 400 | H25: 400 | I25: 400 | J25: 400 | K25: 400 | L25: 400 | M25: 400 | N25: =SUM(B25:M25) -> 4800
A26: Landscape Expense | B26: 100 | C26: 100 | D26: 100 | E26: 100 | F26: 100 | G26: 100 | H26: 100 | I26: 100 | J26: 100 | K26: 100 | L26: 100 | M26: 100 | N26: 1200
A27: SCE | B27: 17.17 | D27: 77.82 | E27: 14.87 | F27: 56.42 | G27: 54.77 | H27: 112.25 | J27: 266.23 | N27: 599.53
A28: WATER | C28: 515.7 | D28: 617.68 | E28: 176.36 | F28: 850.43 | G28: 674.07 | H28: 739.02 | I28: 737.19 | J28: 722.21 | L28: 674.54 | M28: 750.94 | N28: 6458.14
A29: WASTE | B29: 541.45 | C29: 541.45 | D29: 541.45 | E29: 541.45 | F29: 541.45 | G29: 541.45 | H29: 541.45 | I29: 541.45 | J29: 559.05 | K29: 559.05 | L29: 559.05 | M29: 559.05 | N29: 6567.8
A30: PROPERTY TAX | B30: 529.57 | E30: 25080.42 | N30: 25609.99
A31: INSURANCE | F31: 6105 | L31: 26084.02 | N31: 32189.02
A32: TOTAL | B32: =SUM(B25:B31) -> 1588.19 | C32: =SUM(C25:C31) -> 1557.15 | D32: 1736.95 | E32: 26313.1 | F32: 8053.3 | G32: 1770.29 | H32: 1892.72 | I32: 1778.64 | J32: 2047.49 | K32: 1059.05 | L32: 27817.61 | M32: 1809.99 | N32: 77424.48
A34: Year 2020 | B34: JAN | C34: FEB | D34: MAR | E34: APR | F34: MAY | G34: JUN | H34: JUL | I34: AUG | J34: SEP | K34: OCT | L34: NOV | M34: DEC | N34: TOTAL Yr. 2020
A35: Management Fee | B35: 450 | C35: 450 | D35: 450 | E35: 450 | F35: 450 | G35: 450 | H35: 450 | I35: 450 | J35: 450 | K35: 450 | L35: 450 | M35: 450 | N35: =SUM(B35:M35) -> 5400
A36: Landscape Expense | B36: 100 | C36: 100 | D36: 100 | E36: 100 | F36: 100 | G36: 100 | H36: 100 | I36: 100 | J36: 100 | K36: 100 | L36: 100 | M36: 100 | N36: 1200
A37: SCE ( Electricity ) | B37: 29.87 | C37: 30.97 | D37: 15.64 | N37: 76.48
A38: WATER | B38: 694.4 | C38: 948.66 | F38: 1392.78 | G38: 900.99 | H38: 1706.63 | I38: 805.64 | J38: 829.48 | K38: 582.14 | L38: 746.81 | M38: 788.04 | N38: 9395.57
A39: WASTE | B39: 559.05 | C39: 559.05 | D39: 559.05 | E39: 559.05 | F39: 559.05 | G39: 559.05 | H39: 559.05 | I39: 559.05 | J39: 559.05 | K39: 559.05 | L39: 559.05 | M39: 559.05 | N39: 6708.6
A40: PROPERTY TAX | E40: 26083.88 | M40: 26260.85 | N40: 52344.73
A41: INSURANCE | G41: 6464 | N41: 6464
A42: TOTAL | B42: =SUM(B35:B41) -> 1833.32 | C42: =SUM(C35:C41) -> 2088.68 | D42: 1124.69 | E42: 27192.93 | F42: 2501.83 | G42: 8474.04 | H42: 2815.68 | I42: 1914.69 | J42: 1938.53 | K42: 1691.19 | L42: 1855.86 | M42: 28157.94 | N42: 81589.38
A44: Year 2021 | B44: JAN | C44: FEB | D44: MAR | E44: APR | F44: MAY | G44: JUN | H44: JUL | I44: AUG | J44: SEP | K44: OCT | L44: NOV | M44: DEC | N44: TOTAL Yr. 2021
A45: Management Fee | B45: 450 | C45: 450 | D45: 450 | E45: 450 | F45: 450 | G45: 450 | H45: 450 | I45: 450 | J45: 450 | K45: 450 | L45: 450 | M45: 450 | N45: =SUM(B45:M45) -> 5400
A46: Landscape Expense | B46: 100 | C46: 100 | D46: 100 | E46: 100 | F46: 100 | G46: 100 | H46: 100 | I46: 100 | J46: 100 | K46: 100 | L46: 100 | M46: 100 | N46: 1200
A47: SCE ( Electricity ) | N47: 0
A48: WATER | B48: 711.67 | C48: 742.9 | D48: 93.7 | E48: 355.25 | F48: 261.55 | G48: 1269.91 | H48: 1008.36 | I48: 994.94 | J48: 1058.33 | L48: 2126.94 | M48: 1133.87 | N48: 9757.42
A49: WASTE | B49: 584.64 | C49: 584.64 | D49: 584.64 | E49: 584.64 | F49: 584.64 | G49: 584.64 | H49: 584.64 | I49: 584.64 | J49: 584.64 | K49: 599.37 | L49: 599.37 | M49: 599.37 | N49: 7059.87
A50: PROPERTY TAX | E50: 26260.77 | M50: 27066.97 | N50: 53327.74
A51: INSURANCE | G51: 7260 | N51: 7260
A52: TOTAL | B52: =SUM(B45:B51) -> 1846.31 | C52: =SUM(C45:C51) -> 1877.54 | D52: 1228.34 | E52: =SUM(E45:E51) -> 27750.66 | F52: =SUM(F45:F51) -> 1396.19 | G52: 9664.55 | H52: 2143 | I52: 2129.58 | J52: 2192.97 | K52: 1149.37 | L52: 3276.31 | M52: 29350.21 | N52: =SUM(B52:M52) -> 84005.03
A54: Year 2022 | B54: JAN | C54: FEB | D54: MAR | E54: APR | F54: MAY | G54: JUN | H54: JUL | I54: AUG | J54: SEP | K54: OCT | L54: NOV | M54: DEC | N54: TOTAL Yr. 2022
A55: Management Fee | B55: 550 | C55: 550 | D55: 550 | E55: 550 | F55: 550 | G55: 550 | H55: 550 | I55: 550 | J55: 550 | K55: 550 | L55: 550 | M55: 550 | N55: =SUM(B55:M55) -> 6600
A56: Landscape Expense | B56: 100 | C56: 100 | D56: 100 | E56: 100 | F56: 100 | G56: 100 | H56: 100 | I56: 100 | J56: 100 | K56: 100 | L56: 100 | M56: 100 | N56: 1200
A57: SCE ( Electricity ) | N57: 0
A58: WATER | B58: 998.87 | C58: 986.39 | D58: 1051.4 | E58: 1038.9 | F58: 969.05 | G58: 878.03 | H58: 1032.43 | I58: 918.34 | J58: 1470.23 | L58: 1362.54 | N58: 10706.18
A59: WASTE | B59: 599.37 | C59: 599.37 | D59: 599.37 | E59: 599.37 | F59: 599.37 | G59: 599.37 | H59: 599.37 | I59: 599.37 | J59: 599.37 | K59: 743.01 | L59: 599.37 | M59: 599.37 | N59: 7336.08
A60: PROPERTY TAX | E60: 27066.77 | M60: 26420.71 | N60: 53487.48
A61: INSURANCE | F61: 5606 | N61: 5606
B62: =SUM(B55:B61) -> 2248.24 | C62: =SUM(C55:C61) -> 2235.76 | D62: 2300.77 | E62: 29355.04 | F62: 7824.42 | G62: 2127.4 | H62: 2281.8 | I62: 2167.71 | J62: 2719.6 | K62: 1393.01 | L62: 2611.91 | M62: 27670.08 | N62: =SUM(B62:M62) -> 84935.74
A64: Year 2023 | B64: JAN | C64: FEB | D64: MAR | E64: APR | F64: MAY | G64: JUN | H64: JUL | I64: AUG | J64: SEP | K64: OCT | L64: NOV | M64: DEC | N64: TOTAL Yr. 2023
A65: Management Fee | B65: 550 | C65: 550 | D65: 550 | E65: 550 | F65: 550 | G65: 550 | H65: 550 | I65: 550 | J65: 550 | K65: 550 | L65: 550 | M65: 550 | N65: =SUM(B65:M65) -> 6600
A66: Landscape Expense | B66: 100 | C66: 100 | D66: 100 | E66: 100 | F66: 100 | G66: 100 | H66: 100 | I66: 100 | J66: 100 | K66: 100 | L66: 100 | M66: 100 | N66: 1200
A67: SCE ( Electricity ) | N67: 0
A68: WATER | B68: 385.14 | C68: 880.26 | D68: 915.67 | E68: 880.26 | F68: 849.28 | I68: 795.92 | J68: 838.52 | K68: 891.14 | L68: 731.66 | M68: 809.12 | N68: 7976.97
A69: WASTE | B69: 743.01 | C69: 743.01 | D69: 743.01 | E69: 743.01 | F69: 743.01 | G69: 743.01 | H69: 743.01 | I69: 743.01 | J69: 799.75 | K69: 799.75 | L69: 799.75 | M69: 799.75 | N69: 9143.08
A70: PROPERTY TAX | E70: 26420.56 | M70: 29200.82 | N70: 55621.38
A71: INSURANCE | F71: 6975 | N71: 6975
A72: TOTAL | B72: =SUM(B65:B71) -> 1778.15 | C72: =SUM(C65:C71) -> 2273.27 | D72: =SUM(D65:D71) -> 2308.68 | E72: =SUM(E65:E71) -> 28693.83 | F72: 9217.29 | G72: 1393.01 | H72: 1393.01 | I72: 2188.93 | J72: 2288.27 | K72: 2340.89 | L72: 2181.41 | M72: 31459.69 | N72: =SUM(B72:M72) -> 87516.43
A74: Year 2024 | B74: JAN | C74: FEB | D74: MAR | E74: APR | F74: MAY | G74: JUN | H74: JUL | I74: AUG | J74: SEP | K74: OCT | L74: NOV | M74: DEC | N74: TOTAL Yr. 2024
A75: Management Fee | B75: 550 | C75: 550 | D75: 550 | E75: 550 | F75: 550 | G75: 550 | H75: 550 | I75: 550 | J75: 550 | K75: 550 | L75: 550 | M75: 550 | N75: =SUM(B75:M75) -> 6600
A76: Landscape Expense | B76: 100 | C76: 100 | D76: 100 | E76: 100 | F76: 100 | G76: 100 | H76: 100 | I76: 100 | J76: 100 | K76: 100 | L76: 100 | M76: 100 | N76: =SUM(B76:M76) -> 1200
A77: SCE ( Electricity ) | N77: 0
A78: WATER | B78: 781.01 | C78: 749.14 | D78: 1026.83 | E78: 1201.87 | F78: 1359.36 | G78: 1381 | I78: 3068.49 | J78: 2466.02 | K78: 1899.23 | L78: 1447.58 | M78: 2846.58 | N78: 18227.11
A79: WASTE | B79: 799.75 | C79: 799.75 | D79: 799.75 | E79: 799.75 | F79: 799.75 | G79: 799.75 | H79: 799.75 | I79: 799.75 | J79: 799.75 | K79: 799.75 | L79: 799.75 | M79: 799.75 | N79: 9597
A80: PROPERTY TAX | E80: 36205.72 | M80: 31434.02 | N80: 67639.74
A81: INSURANCE | F81: 9831 | N81: 9831
A82: TOTAL | B82: =SUM(B75:B81) -> 2230.76 | C82: =SUM(C75:C81) -> 2198.89 | D82: 2476.58 | E82: 38857.34 | F82: 12640.11 | G82: 2830.75 | H82: 1449.75 | I82: 4518.24 | J82: 3915.77 | K82: 3348.98 | L82: 2897.33 | M82: 35730.35 | N82: =SUM(B82:M82) -> 113094.85
A84: Year 2025 | B84: JAN | C84: FEB | D84: MAR | E84: APR | F84: MAY | G84: JUN | H84: JUL | I84: AUG | J84: SEP | K84: OCT | L84: NOV | M84: DEC
A85: Management Fee | B85: 550 | C85: 550 | D85: 550 | E85: 550 | F85: 550 | G85: 550 | H85: 550 | I85: 550 | J85: 550 | K85: 550
A86: Landscape Expense | B86: 100 | C86: 100 | D86: 100 | E86: 100 | F86: 100 | G86: 100 | H86: 100 | I86: 100 | J86: 100 | K86: 100
A87: SCE ( Electricity )
A88: WATER | B88: 2617.82 | C88: 1284.29 | D88: 2212.6 | E88: 578.8 | F88: 904.16 | G88: 1010.05 | H88: 1176.2 | I88: 946.99 | J88: 1017.6
A89: WASTE | B89: 792.04 | C89: 792.04 | D89: 792.04 | E89: 792.04 | F89: 792.04 | G89: 792.04 | H89: 792.04 | I89: 792.04 | J89: 792.04 | K89: 792.04
A90: PROPERTY TAX | E90: 29678.58
A91: INSURANCE | F91: 2176.19 | I91: 2176.19
A92: TOTAL | B92: =SUM(B85:B91) -> 4059.86 | C92: =SUM(C85:C91) -> 2726.33 | D92: 3654.64 | E92: 31699.42 | F92: 4522.39 | G92: =SUM(G85:G91) -> 2452.09 | H92: =SUM(H85:H91) -> 2618.24 | I92: =SUM(I85:I91) -> 4565.22 | J92: =SUM(J85:J91) -> 2459.64 | K92: =SUM(K85:K91) -> 1442.04
